[Event "Kurnosov Memorial Rapid 2019"]
[Site "Chelyabinsk"]
[Date "2019.09.06"]
[Round "4.2"]
[White "Khusenkhojaev, Muhammad"]
[Black "Movsesian, Sergei"]
[Result "0-1"]
[ECO "D02"]
[WhiteElo "2450"]
[BlackElo "2654"]
[Annotator "RC"]
[PlyCount "70"]
[EventDate "2019.09.06"]
[EventType "swiss"]
[EventCountry "RUS"]
[SourceTitle "playchess.com"]
[Source "ChessBase"]
[SourceQuality "1"]
[TimeControl "900+10"]

1. Nf3 {[%emt 0:00:00]} d5 {[%emt 0:00:00]} 2. d4 {[%emt 0:00:00]} Nf6 {[%emt 0:00:00]} 3. c4 {[%emt 0:00:00]} e6 {[%emt 0:00:00]} 4. g3 {[%emt 0:00:00]} Bb4+ {[%emt 0:00:11]} 5. Bd2 {[%emt 0:00:00]} a5 {[%emt 0:00:07]} 6. Qc2 {[%emt 0:00:28]} dxc4 {[%emt 0:00:22]} 7. Qxc4 {[%emt 0:00:08]} b6 {[%emt 0:00:23]} 8. Bg2 {[%emt 0:00:25]} Ba6 {[%emt 0:00:22]} 9. Qc2 {[%emt 0:00:06]} O-O {[%emt 0:00:14]} 10. Nc3 {[%emt 0:00:52]} Nc6 {[%emt 0:01:45]} 11. O-O {[%emt 0:00:49]} Rc8 {[%emt 0:00:30]} 12. a3 {[%emt 0:00:44]} Be7 {[%emt 0:00:15]} 13. Qa4 {[%emt 0:00:04]} Qd7 {[%emt 0:00:42]} 14. Rfc1 {[%emt 0:00:53]} Rfd8 {[%emt 0:00:40]} 15. e3 {[%emt 0:00:32]} Qe8 {[%emt 0:01:30]} 16. Be1 {[%emt 0:00:14]} h6 {[%emt 0:00:18]} 17. b4 {[%emt 0:00:48]} axb4 {[%emt 0:00:57]} 18. Qxa6 {[%emt 0:02:43]} bxc3 {[%emt 0:00:03]} 19. Rxc3 {[%emt 0:00:06]} Nb4 {[%emt 0:01:41]} 20. Qe2 {[%emt 0:00:41]} Nbd5 {[%emt 0:00:02]} 21. Rc2 {[%emt 0:00:09]} c5 {[%emt 0:00:02]} 22. Rb1 {[%emt 0:01:04]} cxd4 {[%emt 0:00:20]} 23. Nxd4 {[%emt 0:00:05]} Bxa3 {[%emt 0:00:21]} 24. Rxc8 {[%emt 0:02:58]} Rxc8 {[%emt 0:00:02]} 25. e4 {[%emt 0:00:02]} Bc5 {[%emt 0:02:48]} 26. Nb5 {[%emt 0:01:27]} Nc7 {[%emt 0:00:17]} 27. e5 {[%emt 0:00:10]} Nxb5 {[%emt 0:00:02]} 28. exf6 {[%emt 0:00:01]} Nd4 {[%emt 0:00:01]} 29. Qg4 {[%emt 0:00:01]} g6 {[%emt 0:00:12]} 30. Bd2 {[%emt 0:01:12]} h5 {[%emt 0:00:58]} 31. Qg5 {[%emt 0:00:03]} Qd8 {[%emt 0:00:07]} 32. Be4 {[%emt 0:00:39]} Nf5 {[%emt 0:01:04]} 33. Bb4 {[%emt 0:00:58]} Qd4 {[%emt 0:00:51]} 34. Bxc5 {[%emt 0:02:04]} Qxe4 {[%emt 0:00:16]} 35. Rxb6 {[%emt 0:00:08]} Rxc5 {[%emt 0:00:26]} 0-1

[Event "Kurnosov Memorial Rapid 2019"]
[Site "Chelyabinsk"]
[Date "2019.09.06"]
[Round "4.3"]
[White "Bocharov, Dmitry"]
[Black "Drygalov, Sergey"]
[Result "1-0"]
[ECO "A20"]
[WhiteElo "2519"]
[BlackElo "2487"]
[Annotator "ChessBase"]
[PlyCount "69"]
[EventDate "2019.09.06"]
[EventType "swiss"]
[EventCountry "RUS"]
[SourceTitle "playchess.com"]
[Source "ChessBase"]
[SourceQuality "1"]
[TimeControl "900+10"]

1. c4 {[%emt 0:00:00]} e5 {[%emt 0:00:00]} 2. d3 {[%emt 0:00:00]} Nc6 {[%emt 0:00:00]} 3. Nf3 {[%emt 0:00:01]} g6 {[%emt 0:00:00]} 4. Nc3 {[%emt 0:00:06]} Bg7 {[%emt 0:00:05]} 5. g3 {[%emt 0:00:02]} Nge7 {[%emt 0:02:03]} 6. Bg2 {[%emt 0:00:02]} O-O {[%emt 0:00:08]} 7. O-O {[%emt 0:00:05]} Nd4 {[%emt 0:00:31]} 8. Nd2 {[%emt 0:03:50]} c6 {[%emt 0:01:01]} 9. b3 {[%emt 0:00:35]} d5 {[%emt 0:02:00]} 10. Ba3 {[%emt 0:00:08]} dxc4 {[%emt 0:01:34]} 11. Nxc4 {[%emt 0:00:14]} Be6 {[%emt 0:01:05]} 12. e3 {[%emt 0:00:14]} Ndf5 {[%emt 0:00:38]} 13. Ne4 {[%emt 0:00:08]} Bd5 {[%emt 0:00:34]} 14. Rc1 {[%emt 0:00:53]} b6 {[%emt 0:00:22]} 15. Qd2 {[%emt 0:00:06]} a5 {[%emt 0:01:33]} 16. Bb2 {[%emt 0:00:12]} f6 {[%emt 0:00:32]} 17. f4 {[%emt 0:00:24]} b5 {[%emt 0:00:48]} 18. fxe5 {[%emt 0:00:32]} bxc4 {[%emt 0:01:33]} 19. exf6 {[%emt 0:00:56]} Bh6 {[%emt 0:00:02]} 20. fxe7 {[%emt 0:00:36]} Qxe7 {[%emt 0:00:02]} 21. Rce1 {[%emt 0:00:55]} cxd3 {[%emt 0:00:10]} 22. Qxd3 {[%emt 0:01:31]} Rae8 {[%emt 0:00:09]} 23. Nf6+ {[%emt 0:02:50]} Rxf6 {[%emt 0:00:18]} 24. Bxf6 {[%emt 0:00:02]} Bxe3+ {[%emt 0:00:44]} 25. Rxe3 {[%emt 0:00:59]} Qxe3+ {[%emt 0:00:16]} 26. Qxe3 {[%emt 0:00:01]} Nxe3 {[%emt 0:00:03]} 27. Bxd5+ {[%emt 0:00:02]} Nxd5 {[%emt 0:00:03]} 28. Bg5 {[%emt 0:00:04]} a4 {[%emt 0:00:41]} 29. bxa4 {[%emt 0:00:06]} Ra8 {[%emt 0:00:03]} 30. Bh6 {[%emt 0:00:09]} Nb6 {[%emt 0:01:21]} 31. Rf6 {[%emt 0:01:07]} Nd7 {[%emt 0:01:21]} 32. Rxc6 {[%emt 0:00:28]} Kf7 {[%emt 0:00:02]} 33. Rc4 {[%emt 0:00:23]} Nb6 {[%emt 0:00:03]} 34. Rc7+ {[%emt 0:00:04]} Ke6 {[%emt 0:00:04]} 35. Rc6+ {[%emt 0:00:02]} 1-0

[Event "Kurnosov Memorial Rapid 2019"]
[Site "Chelyabinsk"]
[Date "2019.09.06"]
[Round "4.4"]
[White "Matveev, Vladimir"]
[Black "Yudin, Sergei"]
[Result "1-0"]
[ECO "D30"]
[WhiteElo "2372"]
[BlackElo "2494"]
[Annotator "ChessBase"]
[PlyCount "37"]
[EventDate "2019.09.06"]
[EventType "swiss"]
[EventCountry "RUS"]
[SourceTitle "playchess.com"]
[Source "ChessBase"]
[SourceQuality "1"]
[TimeControl "900+10"]

1. d4 {[%emt 0:00:00]} d5 {[%emt 0:01:20]} 2. c4 {[%emt 0:00:00]} e6 {[%emt 0:00:03]} 3. Nf3 {[%emt 0:00:00]} c6 {[%emt 0:00:02]} 4. Nbd2 {[%emt 0:00:10]} Nf6 {[%emt 0:00:02]} 5. g3 {[%emt 0:00:01]} Bd6 {[%emt 0:00:02]} 6. Bg2 {[%emt 0:00:01]} O-O {[%emt 0:00:01]} 7. O-O {[%emt 0:00:50]} Nbd7 {[%emt 0:00:27]} 8. Qc2 {[%emt 0:00:04]} Re8 {[%emt 0:00:01]} 9. e4 {[%emt 0:02:47]} Nxe4 {[%emt 0:00:21]} 10. Nxe4 {[%emt 0:00:01]} dxe4 {[%emt 0:00:01]} 11. Qxe4 {[%emt 0:00:01]} e5 {[%emt 0:00:01]} 12. dxe5 {[%emt 0:00:03]} Nxe5 {[%emt 0:00:02]} 13. Bd2 {[%emt 0:02:15]} Bg4 {[%emt 0:01:20]} 14. Nxe5 {[%emt 0:00:21]} Bxe5 {[%emt 0:00:14]} 15. Qxg4 {[%emt 0:00:02]} Qxd2 {[%emt 0:00:03]} 16. Rad1 {[%emt 0:00:21]} Qa5 {[%emt 0:01:08]} 17. Rd7 {[%emt 0:00:08]} Rab8 {[%emt 0:00:21]} 18. Qf5 {[%emt 0:00:18]} f6 {[%emt 0:00:16]} 19. Be4 {[%emt 0:00:20]} 1-0

[Event "Kurnosov Memorial Rapid 2019"]
[Site "Chelyabinsk"]
[Date "2019.09.06"]
[Round "4.5"]
[White "Romanov, Evgeny"]
[Black "Harutjunyan, Gevorg"]
[Result "1-0"]
[ECO "A20"]
[WhiteElo "2579"]
[BlackElo "2455"]
[Annotator "ChessBase"]
[PlyCount "49"]
[EventDate "2019.09.06"]
[EventType "swiss"]
[EventCountry "RUS"]
[SourceTitle "playchess.com"]
[Source "ChessBase"]
[SourceQuality "1"]
[TimeControl "900+10"]

1. c4 {[%emt 0:00:00]} e5 {[%emt 0:00:10]} 2. d3 {[%emt 0:00:00]} c6 {[%emt 0:00:52]} 3. Nf3 {[%emt 0:00:02]} Nf6 {[%emt 0:00:14]} 4. Bg5 {[%emt 0:00:46]} h6 {[%emt 0:01:22]} 5. Bh4 {[%emt 0:00:02]} e4 {[%emt 0:00:46]} 6. dxe4 {[%emt 0:01:01]} Qa5+ {[%emt 0:00:34]} 7. Nfd2 {[%emt 0:00:12]} Nxe4 {[%emt 0:00:23]} 8. e3 {[%emt 0:00:11]} g5 {[%emt 0:00:37]} 9. Bg3 {[%emt 0:00:05]} Bg7 {[%emt 0:00:07]} 10. Nc3 {[%emt 0:05:24]} Nxc3 {[%emt 0:01:45]} 11. bxc3 {[%emt 0:00:01]} Bxc3 {[%emt 0:00:03]} 12. Bd6 {[%emt 0:01:02]} Na6 {[%emt 0:01:21]} 13. Qc2 {[%emt 0:02:46]} Nc5 {[%emt 0:02:23]} 14. Rd1 {[%emt 0:00:33]} b6 {[%emt 0:00:50]} 15. h4 {[%emt 0:00:40]} Ba6 {[%emt 0:00:59]} 16. hxg5 {[%emt 0:00:09]} hxg5 {[%emt 0:00:10]} 17. Rxh8+ {[%emt 0:00:40]} Bxh8 {[%emt 0:00:03]} 18. Be2 {[%emt 0:00:13]} O-O-O {[%emt 0:00:18]} 19. Kf1 {[%emt 0:00:01]} Re8 {[%emt 0:03:07]} 20. Bg4 {[%emt 0:01:22]} Qa4 {[%emt 0:00:35]} 21. Qf5 {[%emt 0:02:00]} Bxc4+ {[%emt 0:01:10]} 22. Nxc4 {[%emt 0:00:03]} Qxc4+ {[%emt 0:00:02]} 23. Kg1 {[%emt 0:00:08]} Re6 {[%emt 0:00:42]} 24. Bxc5 {[%emt 0:00:21]} bxc5 {[%emt 0:00:08]} 25. Qxf7 {[%emt 0:00:06]} 1-0

[Event "Kurnosov Memorial Rapid 2019"]
[Site "Chelyabinsk"]
[Date "2019.09.06"]
[Round "4.7"]
[White "Akhtariev, Andrey"]
[Black "Drygalov, Andrey"]
[Result "0-1"]
[ECO "B92"]
[WhiteElo "2160"]
[BlackElo "2499"]
[Annotator "ChessBase"]
[PlyCount "50"]
[EventDate "2019.09.06"]
[EventType "swiss"]
[EventCountry "RUS"]
[SourceTitle "playchess.com"]
[Source "ChessBase"]
[SourceQuality "1"]
[TimeControl "900+10"]

1. e4 {[%emt 0:00:00]} c5 {[%emt 0:00:00]} 2. Nf3 {[%emt 0:00:00]} d6 {[%emt 0:00:00]} 3. d4 {[%emt 0:00:00]} cxd4 {[%emt 0:00:00]} 4. Nxd4 {[%emt 0:00:00]} Nf6 {[%emt 0:00:00]} 5. Nc3 a6 6. Be2 {[%emt 0:00:02]} e5 {[%emt 0:00:00]} 7. Nb3 {[%emt 0:00:01]} Be7 {[%emt 0:00:02]} 8. Qd3 {[%emt 0:00:07]} Be6 {[%emt 0:00:09]} 9. Nd5 {[%emt 0:00:02]} Nbd7 {[%emt 0:00:22]} 10. Be3 {[%emt 0:00:29]} Bxd5 {[%emt 0:00:32]} 11. exd5 {[%emt 0:00:02]} O-O {[%emt 0:00:04]} 12. O-O {[%emt 0:00:24]} Ne8 {[%emt 0:00:07]} 13. f3 {[%emt 0:00:30]} Bg5 {[%emt 0:00:25]} 14. Bf2 {[%emt 0:00:30]} f5 {[%emt 0:00:20]} 15. Rad1 {[%emt 0:00:13]} g6 {[%emt 0:00:34]} 16. a4 {[%emt 0:00:33]} Nef6 {[%emt 0:00:56]} 17. a5 {[%emt 0:00:32]} Re8 {[%emt 0:00:14]} 18. Qc3 {[%emt 0:02:16]} Rc8 {[%emt 0:03:07]} 19. Qb4 {[%emt 0:00:29]} Rxc2 {[%emt 0:00:18]} 20. Bd3 {[%emt 0:00:11]} Rxb2 {[%emt 0:00:31]} 21. Qa3 {[%emt 0:01:02]} Rxf2 {[%emt 0:00:02]} 22. Kxf2 {[%emt 0:00:09]} e4 {[%emt 0:01:06]} 23. fxe4 {[%emt 0:00:48]} Ng4+ {[%emt 0:00:53]} 24. Kg1 {[%emt 0:00:08]} Be3+ {[%emt 0:00:23]} 25. Kh1 {[%emt 0:00:02]} Qh4 {[%emt 0:00:10]} 0-1

[Event "Kurnosov Memorial Rapid 2019"]
[Site "Chelyabinsk"]
[Date "2019.09.06"]
[Round "4.8"]
[White "Sivuk, Vitaly"]
[Black "Remizov, Yaroslav"]
[Result "1/2-1/2"]
[ECO "D31"]
[WhiteElo "2559"]
[BlackElo "2354"]
[Annotator "ChessBase"]
[PlyCount "112"]
[EventDate "2019.09.06"]
[EventType "swiss"]
[EventCountry "RUS"]
[SourceTitle "playchess.com"]
[Source "ChessBase"]
[SourceQuality "1"]
[TimeControl "900+10"]

1. d4 {[%emt 0:00:00]} d5 {[%emt 0:00:00]} 2. c4 {[%emt 0:00:00]} e6 {[%emt 0:00:00]} 3. Nc3 {[%emt 0:00:00]} c6 {[%emt 0:00:00]} 4. e4 {[%emt 0:00:05]} dxe4 {[%emt 0:00:00]} 5. Nxe4 {[%emt 0:00:02]} Bb4+ {[%emt 0:00:01]} 6. Bd2 {[%emt 0:00:05]} Qxd4 {[%emt 0:00:02]} 7. Bxb4 {[%emt 0:00:02]} Qxe4+ {[%emt 0:00:02]} 8. Ne2 {[%emt 0:00:03]} Na6 {[%emt 0:00:35]} 9. Bf8 {[%emt 0:00:04]} Ne7 {[%emt 0:01:22]} 10. Bxg7 {[%emt 0:00:20]} Rg8 {[%emt 0:00:24]} 11. Bc3 {[%emt 0:00:43]} Nc5 {[%emt 0:06:25]} 12. Qd4 {[%emt 0:01:18]} b6 {[%emt 0:00:57]} 13. O-O-O {[%emt 0:01:01]} Ba6 {[%emt 0:00:53]} 14. Ng3 {[%emt 0:00:18]} Qxd4 {[%emt 0:00:34]} 15. Bxd4 {[%emt 0:00:04]} Rd8 {[%emt 0:00:50]} 16. Bxc5 {[%emt 0:02:08]} bxc5 {[%emt 0:01:21]} 17. Ne4 {[%emt 0:00:06]} Rxd1+ {[%emt 0:00:52]} 18. Kxd1 {[%emt 0:00:02]} Kd8 {[%emt 0:00:07]} 19. Nxc5 {[%emt 0:00:13]} Bc8 {[%emt 0:00:02]} 20. g3 {[%emt 0:00:34]} Kc7 {[%emt 0:00:14]} 21. Bd3 {[%emt 0:00:16]} f5 {[%emt 0:00:08]} 22. f4 {[%emt 0:00:26]} h5 {[%emt 0:01:16]} 23. Ke2 {[%emt 0:00:17]} Kd6 {[%emt 0:01:14]} 24. b4 {[%emt 0:00:04]} h4 {[%emt 0:00:17]} 25. Kf3 {[%emt 0:00:29]} Ng6 {[%emt 0:00:51]} 26. Rd1 {[%emt 0:00:07]} Ke7 {[%emt 0:00:16]} 27. Be2 {[%emt 0:02:10]} e5 {[%emt 0:00:13]} 28. fxe5 {[%emt 0:00:31]} Nxe5+ {[%emt 0:00:02]} 29. Kf2 {[%emt 0:00:09]} Ng4+ {[%emt 0:00:31]} 30. Bxg4 {[%emt 0:01:43]} Rxg4 {[%emt 0:00:01]} 31. Rc1 {[%emt 0:00:09]} f4 {[%emt 0:00:26]} 32. gxf4 {[%emt 0:03:18]} Rxf4+ {[%emt 0:00:01]} 33. Ke3 {[%emt 0:00:01]} Rg4 {[%emt 0:00:08]} 34. Rc2 {[%emt 0:00:06]} Bf5 {[%emt 0:00:18]} 35. Rf2 {[%emt 0:00:06]} Bg6 {[%emt 0:00:14]} 36. Rf4 {[%emt 0:00:12]} Rxf4 {[%emt 0:00:08]} 37. Kxf4 {[%emt 0:00:02]} Bf7 {[%emt 0:00:00]} 38. Ke5 {[%emt 0:00:25]} Bxc4 {[%emt 0:00:05]} 39. a3 {[%emt 0:00:01]} h3 {[%emt 0:00:10]} 40. Ne4 {[%emt 0:00:12]} Kd7 {[%emt 0:00:06]} 41. Kd4 {[%emt 0:00:36]} Bf1 {[%emt 0:00:25]} 42. Kc5 {[%emt 0:00:20]} Bg2 {[%emt 0:00:04]} 43. Ng5 {[%emt 0:00:08]} Kc7 {[%emt 0:00:11]} 44. Ne6+ {[%emt 0:00:45]} Kb7 {[%emt 0:00:19]} 45. a4 {[%emt 0:00:27]} a5 {[%emt 0:00:12]} 46. b5 {[%emt 0:01:19]} cxb5 {[%emt 0:00:01]} 47. Kxb5 {[%emt 0:00:02]} Bf1+ {[%emt 0:00:05]} 48. Kxa5 {[%emt 0:00:09]} Kc6 {[%emt 0:00:01]} 49. Kb4 {[%emt 0:00:12]} Kd5 {[%emt 0:00:06]} 50. Nc7+ {[%emt 0:00:19]} Ke4 {[%emt 0:00:05]} 51. a5 {[%emt 0:00:08]} Kf3 {[%emt 0:00:03]} 52. Nb5 {[%emt 0:00:06]} Bxb5 {[%emt 0:00:21]} 53. Kxb5 {[%emt 0:00:01]} Kg2 {[%emt 0:00:01]} 54. a6 {[%emt 0:00:01]} Kxh2 {[%emt 0:00:01]} 55. a7 {[%emt 0:00:01]} Kg1 {[%emt 0:00:02]} 56. a8=Q {[%emt 0:00:01]} h2 {[%emt 0:00:02]} 1/2-1/2

[Event "Kurnosov Memorial Rapid 2019"]
[Site "Chelyabinsk"]
[Date "2019.09.07"]
[Round "5.2"]
[White "Drygalov, Andrey"]
[Black "Bocharov, Dmitry"]
[Result "1/2-1/2"]
[ECO "C84"]
[WhiteElo "2499"]
[BlackElo "2519"]
[Annotator "ChessBase"]
[PlyCount "93"]
[EventDate "2019.09.06"]
[EventType "swiss"]
[EventCountry "RUS"]
[SourceTitle "playchess.com"]
[Source "ChessBase"]
[SourceQuality "1"]
[TimeControl "900+10"]

1. e4 {[%emt 0:00:00]} e5 {[%emt 0:01:39]} 2. Nf3 {[%emt 0:00:00]} Nc6 {[%emt 0:00:02]} 3. Bb5 {[%emt 0:00:04]} a6 {[%emt 0:00:04]} 4. Ba4 {[%emt 0:00:02]} Nf6 {[%emt 0:00:02]} 5. O-O {[%emt 0:00:04]} Be7 {[%emt 0:00:12]} 6. d3 {[%emt 0:00:02]} b5 {[%emt 0:00:46]} 7. Bb3 {[%emt 0:00:01]} O-O {[%emt 0:00:03]} 8. Nc3 {[%emt 0:00:17]} d6 {[%emt 0:00:16]} 9. a3 {[%emt 0:00:00]} Na5 {[%emt 0:02:15]} 10. Ba2 {[%emt 0:00:01]} c5 {[%emt 0:00:01]} 11. b4 {[%emt 0:02:32]} cxb4 {[%emt 0:01:34]} 12. axb4 {[%emt 0:00:02]} Nc6 {[%emt 0:00:01]} 13. Nd5 {[%emt 0:00:11]} Nxd5 {[%emt 0:00:22]} 14. Bxd5 {[%emt 0:01:24]} Bb7 {[%emt 0:00:02]} 15. c3 {[%emt 0:01:46]} Qd7 {[%emt 0:01:21]} 16. Be3 {[%emt 0:00:41]} Bf6 {[%emt 0:01:29]} 17. Ra3 {[%emt 0:03:29]} Ne7 {[%emt 0:00:46]} 18. Bxb7 {[%emt 0:00:01]} Qxb7 {[%emt 0:00:01]} 19. Qb3 {[%emt 0:01:54]} d5 {[%emt 0:01:40]} 20. Nd2 {[%emt 0:01:14]} d4 {[%emt 0:02:09]} 21. cxd4 {[%emt 0:00:01]} exd4 {[%emt 0:00:01]} 22. Bf4 {[%emt 0:00:00]} Ng6 {[%emt 0:00:02]} 23. Bg3 {[%emt 0:00:30]} Rfc8 {[%emt 0:00:03]} 24. Qa2 {[%emt 0:00:17]} Rc3 {[%emt 0:01:45]} 25. Ra1 {[%emt 0:01:32]} Rac8 {[%emt 0:00:19]} 26. Nb3 {[%emt 0:01:46]} h5 {[%emt 0:00:36]} 27. Nc5 {[%emt 0:00:28]} Qe7 {[%emt 0:00:42]} 28. Rxa6 {[%emt 0:00:13]} h4 {[%emt 0:00:03]} 29. Bd6 {[%emt 0:00:04]} Qe8 {[%emt 0:00:02]} 30. h3 {[%emt 0:00:11]} Be5 {[%emt 0:00:16]} 31. Bxe5 {[%emt 0:01:00]} Nxe5 {[%emt 0:00:20]} 32. Qd2 {[%emt 0:00:07]} Nc6 {[%emt 0:00:29]} 33. Qb2 {[%emt 0:00:16]} Ne5 {[%emt 0:00:29]} 34. R6a3 {[%emt 0:00:11]} Rxa3 {[%emt 0:00:14]} 35. Rxa3 {[%emt 0:00:01]} Qe7 {[%emt 0:00:01]} 36. Qxd4 {[%emt 0:00:08]} Rd8 {[%emt 0:00:21]} 37. Qe3 {[%emt 0:00:02]} Nc6 {[%emt 0:00:01]} 38. Qd2 {[%emt 0:00:32]} Qe5 {[%emt 0:00:08]} 39. Ra6 {[%emt 0:00:05]} Rd6 {[%emt 0:00:07]} 40. Ra2 {[%emt 0:00:14]} Qd4 {[%emt 0:00:10]} 41. Qg5 {[%emt 0:00:08]} Rd8 {[%emt 0:00:18]} 42. Nb7 {[%emt 0:00:10]} Rb8 {[%emt 0:00:16]} 43. Qxb5 {[%emt 0:00:09]} Nxb4 {[%emt 0:00:06]} 44. Ra4 {[%emt 0:00:03]} Qc3 {[%emt 0:00:10]} 45. Rxb4 {[%emt 0:00:23]} Qc1+ {[%emt 0:00:06]} 46. Kh2 {[%emt 0:00:06]} Qf4+ {[%emt 0:00:03]} 47. Kg1 {[%emt 0:00:02]} 1/2-1/2

[Event "Kurnosov Memorial Rapid 2019"]
[Site "Chelyabinsk"]
[Date "2019.09.07"]
[Round "5.3"]
[White "Belyakov, Bogdan"]
[Black "Romanov, Evgeny"]
[Result "1/2-1/2"]
[ECO "C15"]
[WhiteElo "2495"]
[BlackElo "2579"]
[Annotator "ChessBase"]
[PlyCount "68"]
[EventDate "2019.09.06"]
[EventType "swiss"]
[EventCountry "RUS"]
[SourceTitle "playchess.com"]
[Source "ChessBase"]
[SourceQuality "1"]
[TimeControl "900+10"]

1. e4 {[%emt 0:00:00]} e6 {[%emt 0:00:00]} 2. d4 {[%emt 0:00:02]} d5 {[%emt 0:00:00]} 3. Nc3 {[%emt 0:00:02]} Bb4 {[%emt 0:00:02]} 4. Nge2 {[%emt 0:00:14]} Nc6 {[%emt 0:00:03]} 5. a3 {[%emt 0:00:07]} Ba5 {[%emt 0:00:02]} 6. e5 {[%emt 0:01:04]} f6 {[%emt 0:00:58]} 7. exf6 {[%emt 0:02:21]} Qxf6 {[%emt 0:00:33]} 8. Bf4 {[%emt 0:01:38]} Bxc3+ {[%emt 0:02:19]} 9. bxc3 {[%emt 0:00:04]} Nge7 {[%emt 0:00:01]} 10. Bxc7 {[%emt 0:00:54]} O-O {[%emt 0:00:02]} 11. f4 {[%emt 0:00:02]} Nf5 {[%emt 0:01:43]} 12. Qd3 {[%emt 0:01:52]} Bd7 {[%emt 0:00:29]} 13. g3 {[%emt 0:00:11]} Rac8 {[%emt 0:00:09]} 14. Be5 {[%emt 0:00:02]} Nxe5 {[%emt 0:00:18]} 15. dxe5 {[%emt 0:00:11]} Qe7 {[%emt 0:00:17]} 16. Bh3 {[%emt 0:00:12]} Rc4 {[%emt 0:03:16]} 17. Bxf5 {[%emt 0:02:26]} Rxf5 {[%emt 0:00:02]} 18. O-O {[%emt 0:00:02]} Qc5+ {[%emt 0:00:02]} 19. Rf2 {[%emt 0:00:02]} Rf8 {[%emt 0:00:17]} 20. Rb1 {[%emt 0:00:31]} b5 {[%emt 0:01:59]} 21. Rb3 {[%emt 0:00:39]} a5 {[%emt 0:00:01]} 22. Kg2 {[%emt 0:00:48]} Rc8 {[%emt 0:01:25]} 23. Rf3 {[%emt 0:00:11]} Be8 {[%emt 0:00:16]} 24. Nd4 {[%emt 0:02:27]} Bg6 {[%emt 0:00:04]} 25. f5 {[%emt 0:00:04]} exf5 {[%emt 0:00:16]} 26. Rxb5 {[%emt 0:00:12]} Qxa3 {[%emt 0:00:42]} 27. Nxf5 {[%emt 0:00:39]} Rxc3 {[%emt 0:01:11]} 28. Qxd5+ {[%emt 0:00:31]} Kh8 {[%emt 0:00:03]} 29. Qd7 {[%emt 0:01:56]} Rxc2+ {[%emt 0:01:58]} 30. Kh3 {[%emt 0:00:08]} Bxf5+ {[%emt 0:00:01]} 31. Qxf5 {[%emt 0:00:06]} Qa2 {[%emt 0:01:05]} 32. Qf8+ {[%emt 0:00:08]} Qg8 {[%emt 0:00:03]} 33. Qxg8+ {[%emt 0:00:03]} Kxg8 {[%emt 0:00:01]} 34. Rxa5 {[%emt 0:00:02]} Re2 {[%emt 0:00:03]} 1/2-1/2

[Event "Kurnosov Memorial Rapid 2019"]
[Site "Chelyabinsk"]
[Date "2019.09.07"]
[Round "5.7"]
[White "Kostenko, Petr"]
[Black "Sivuk, Vitaly"]
[Result "1/2-1/2"]
[ECO "A17"]
[WhiteElo "2472"]
[BlackElo "2559"]
[Annotator "ChessBase"]
[PlyCount "75"]
[EventDate "2019.09.06"]
[EventType "swiss"]
[EventCountry "RUS"]
[SourceTitle "playchess.com"]
[Source "ChessBase"]
[SourceQuality "1"]
[TimeControl "900+10"]

1. c4 {[%emt 0:00:00]} e6 {[%emt 0:00:00]} 2. Nc3 {[%emt 0:00:07]} Nf6 {[%emt 0:00:02]} 3. Nf3 {[%emt 0:00:21]} d5 {[%emt 0:00:04]} 4. e3 {[%emt 0:00:09]} dxc4 {[%emt 0:00:11]} 5. Bxc4 {[%emt 0:00:17]} a6 {[%emt 0:00:03]} 6. b3 {[%emt 0:00:15]} c5 {[%emt 0:00:17]} 7. Bb2 {[%emt 0:00:02]} b5 {[%emt 0:00:09]} 8. Be2 {[%emt 0:00:02]} Bb7 {[%emt 0:00:01]} 9. O-O {[%emt 0:00:55]} Be7 {[%emt 0:00:06]} 10. a4 {[%emt 0:00:04]} b4 {[%emt 0:00:03]} 11. Nb1 {[%emt 0:00:01]} O-O {[%emt 0:00:16]} 12. Qc2 {[%emt 0:00:08]} Nbd7 {[%emt 0:00:43]} 13. g3 {[%emt 0:00:17]} Rc8 {[%emt 0:00:42]} 14. d3 {[%emt 0:00:01]} Rc7 {[%emt 0:00:16]} 15. Nbd2 {[%emt 0:00:02]} Qa8 {[%emt 0:00:02]} 16. e4 {[%emt 0:00:17]} Rd8 {[%emt 0:00:22]} 17. Nc4 {[%emt 0:00:13]} Ne8 {[%emt 0:00:24]} 18. Nfe5 {[%emt 0:00:16]} Qa7 {[%emt 0:01:10]} 19. f4 {[%emt 0:00:31]} f6 {[%emt 0:01:53]} 20. Nxd7 {[%emt 0:00:23]} Rcxd7 {[%emt 0:00:03]} 21. Rad1 {[%emt 0:01:23]} a5 {[%emt 0:01:27]} 22. Bg4 {[%emt 0:05:32]} Nc7 {[%emt 0:00:07]} 23. f5 {[%emt 0:01:08]} e5 {[%emt 0:00:24]} 24. Be2 {[%emt 0:00:03]} Ne8 {[%emt 0:02:34]} 25. g4 Nd6 {[%emt 0:00:05]} 26. g5 {[%emt 0:00:07]} Nxc4 {[%emt 0:00:10]} 27. dxc4 {[%emt 0:00:21]} Rxd1 {[%emt 0:00:53]} 28. Rxd1 {[%emt 0:00:35]} Rxd1+ {[%emt 0:00:03]} 29. Bxd1 {[%emt 0:00:01]} Qa8 {[%emt 0:00:09]} 30. Bf3 {[%emt 0:00:02]} Qd8 {[%emt 0:00:06]} 31. g6 {[%emt 0:01:57]} h6 {[%emt 0:05:39]} 32. Kf2 {[%emt 0:01:04]} Qd6 {[%emt 0:00:02]} 33. Bc1 {[%emt 0:00:29]} Bc6 {[%emt 0:00:11]} 34. Be3 {[%emt 0:00:03]} Bf8 {[%emt 0:00:02]} 35. Be2 {[%emt 0:00:16]} Bb7 {[%emt 0:00:03]} 36. Bd3 {[%emt 0:00:13]} Bc6 {[%emt 0:00:03]} 37. Ke2 {[%emt 0:00:01]} Bb7 {[%emt 0:00:01]} 38. Qd1 {[%emt 0:00:23]} 1/2-1/2